[Event "Fagernes GM Open Autumn 2024"]
[Site "Fagernes"]
[Date "2024.10.11"]
[Round "7.9"]
[White "Oye-Stromberg, Alexander"]
[Black "Mitusov, Semen"]
[Result "1/2-1/2"]
[ECO "B55"]
[WhiteElo "2248"]
[BlackElo "2486"]
[Annotator "TA"]
[PlyCount "113"]
[EventDate "2024.10.03"]
[EventType "swiss"]
[EventCountry "NOR"]
[SourceTitle "playchess.com"]
[Source "ChessBase"]
[SourceQuality "1"]
[TimeControl "40/6000:2400+30"]

{[%evp 9,113,0,8,9,6,22,37,33,36,19,37,27,45,31,56,46,52,60,66,59,56,55,65,64,64,62,65,66,60,42,62,0,92,85,76,62,79,72,70,71,85,83,78,96,83,81,80,53,94,87,100,92,94,99,97,91,129,86,108,82,74,63,72,68,79,71,139,62,139,50,65,66,120,90,125,120,207,50,87,75,99,68,82,88,100,0,6,0,0,0,0,-50,-36,-58,0,0,0,-14,45,-47,0,0,23,-44,0,0]} 1. e4 {[%emt 0:03:33]} c5 {[%emt 0:00:00]} 2. Nf3 {[%emt 0:00:00]} d6 {[%emt 0:00:00]} 3. d4 {[%emt 0:00:00]} cxd4 {[%emt 0:00:00]} 4. Nxd4 {[%emt 0:00:00]} Nf6 {[%emt 0:00:00]} 5. Bb5+ {[%emt 0:02:59]} Nbd7 {[%emt 0:04:22][%cal Oe7e5]} 6. O-O {[%emt 0:00:33]} a6 {[%emt 0:00:21]} 7. Bd3 {[%emt 0:00:00]} g6 {[%emt 0:09:54]} 8. c4 {[%emt 0:00:14] White is slightly better.} Bg7 {[%emt 0:00:00]} 9. Nc3 {[%emt 0:00:29]} O-O {[%emt 0:00:29]} 10. Re1 {[%emt 0:02:11]} Re8 {[%emt 0:01:48][%cal Of6g4]} 11. Bf1 {[%emt 0:09:37]} b6 {[%emt 0:02:44]} 12. Bg5 {[%emt 0:01:44]} h6 {[%emt 0:08:45]} 13. Be3 {[%emt 0:00:01]} Bb7 {[%emt 0:00:00]} 14. f3 {[%emt 0:00:51]} Kh7 {[%emt 0:04:22]} 15. Qd2 {[%emt 0:01:32]} Rc8 {[%emt 0:01:23]} 16. Rac1 {[%emt 0:01:15]} e6 {[%emt 0:05:22]} 17. Nb3 {[%emt 0:07:24]} Qc7 {[%emt 0:07:12]} 18. Red1 {[%emt 0:05:12]} Bf8 {[%emt 0:00:48]} 19. Qd4 {[%emt 0:07:49]} Ng8 {[%emt 0:07:25]} 20. Qd2 {[%emt 0:09:35]} (20. Bf2 $14) 20... Red8 {[%emt 0:04:35]} (20... Ngf6 $1 $11 {keeps the balance.}) 21. Qf2 $16 {[%emt 0:00:45]} Bg7 {[%emt 0:02:41]} 22. Bd4 {[%emt 0:10:43]} Ngf6 {[%emt 0:01:47]} 23. Nd2 {[%emt 0:00:23]} Ba8 {[%emt 0:06:13]} 24. b4 {[%emt 0:00:01]} Qb8 {[%emt 0:02:02]} 25. Nb3 {[%emt 0:00:51]} Ne8 {[%emt 0:01:45]} 26. a3 {[%emt 0:03:16]} Bxd4 {[%emt 0:01:24]} 27. Rxd4 {[%emt 0:00:46]} Bc6 {[%emt 0:01:15]} 28. Rcd1 {[%emt 0:00:48]} Nf8 {[%emt 0:02:42]} 29. f4 {[%emt 0:00:52][%cal Bf3f4,Bf4f5][%mdl 32]} Kg7 {[%emt 0:02:10]} 30. Qh4 {[%emt 0:02:09]} Rd7 {[%emt 0:00:35]} 31. R4d3 {[%emt 0:02:33][%cal Bd4d3,Bd3h3,Bh3g3][%mdl 32] Threatens to win with Rh3.} Nf6 {[%emt 0:01:20][%cal Ob6b5]} 32. Rh3 {[%emt 0:00:10]} Ng8 {[%emt 0:02:02]} 33. f5 {[%emt 0:00:35]} g5 {[%emt 0:02:28]} 34. Qf2 {[%emt 0:00:13]} e5 {[%emt 0:00:29] Inhibits Nd4.} 35. Rg3 {[%emt 0:02:43] White is much more active. The black rooks are passive.} Nf6 {[%emt 0:00:26]} 36. Be2 {[%emt 0:11:11]} N8h7 {[%emt 0:02:55]} 37. Qe3 {[%emt 0:00:00]} Rh8 {[%emt 0:02:56]} (37... b5 $142) 38. Rc1 {[%emt 0:03:41]} (38. Nd2 $16) 38... Qa8 {[%emt 0:02:28]} ({Black should try} 38... b5 $14) 39. Bd3 {[%emt 0:00:26]} (39. Bf3 $16) 39... Rb8 {[%emt 0:01:46]} 40. a4 {[%emt 0:02:18]} Rdd8 {[%emt 0:00:30]} (40... Nh5 $14) 41. b5 {[%emt 0:14:43]} Bd7 {[%emt 0:05:53]} 42. Be2 {[%emt 0:01:41] aiming for h4.} Kh8 {[%emt 0:02:57]} (42... axb5 $16 {might work better.} 43. axb5 (43. cxb5 Rbc8 $16) 43... Qa3) 43. a5 $2 {[%emt 0:03:42]} (43. Nd2 $18) 43... bxa5 {[%emt 0:05:45][%cal Oa5a4] [#]} 44. Ra1 $1 {[%emt 0:00:19]} axb5 {[%emt 0:00:04]} 45. cxb5 {[%emt 0:00:30]} Rb7 {[%emt 0:06:24]} 46. Rxa5 {[%emt 0:00:32]} (46. Nxa5 Ra7 47. Qb6 Ne8 $19) 46... Qb8 {[%emt 0:00:29] [#]} 47. Ra6 {[%emt 0:02:32]} (47. h3 $1 $16) 47... Bxb5 $1 $11 {[%emt 0:06:49]} 48. Nxb5 {[%emt 0:00:53]} Rxb5 {[%emt 0:00:04]} 49. Bxb5 {[%emt 0:00:07]} Qxb5 {[%emt 0:00:03]} 50. Rb6 {[%emt 0:04:12]} (50. Ra1 $11) 50... Qa4 $15 {[%emt 0:01:01][%mdl 1024] Black has compensation.} 51. Nd2 {[%emt 0:04:05]} Qd1+ {[%emt 0:04:08]} ({Better is} 51... d5 $15 52. Qd3 Rc8) 52. Nf1 $11 {[%emt 0:00:30]} Qa4 {[%emt 0:00:45]} 53. Rb7 {[%emt 0:06:03]} Kg7 {[%emt 0:01:31]} (53... Nxe4 $11 54. Qb6 Rf8) 54. Nd2 {[%emt 0:04:04]} (54. Qb6 $14 Rc8 55. Qxd6) 54... Qd1+ {[%emt 0:01:25]} (54... Rc8 $1 $15 55. Rb1 Nh5) 55. Nf1 {[%emt 0:00:05]} Qa4 {[%emt 0:02:01]} 56. Nd2 {[%emt 0:00:23]} (56. Qb6 $11 Rc8 57. Qxd6) 56... Qd1+ {[%emt 0:00:17]} (56... Rc8 $5 57. Rb1 Nh5 $17) 57. Nf1 {[%emt 0:00:04] Weighted Error Value: White=0.25 (precise) /Black=0.22 (precise) .  Mistake:       	White=8     	Black=8      Inaccurate:     	White=3     	Black=5      OK:         	White=15    	Black=12     Best:        	White=4     	Black=4      Strong:       	White=1     	Black=1} 1/2-1/2

[Event "Fagernes GM Open Autumn 2024"]
[Site "Fagernes"]
[Date "2024.10.11"]
[Round "7.10"]
[White "Sidhant, Mohapatra"]
[Black "Hillarp Persson, Tiger"]
[Result "0-1"]
[ECO "B96"]
[WhiteElo "2369"]
[BlackElo "2455"]
[Annotator "TA"]
[PlyCount "90"]
[EventDate "2024.10.03"]
[EventType "swiss"]
[EventCountry "NOR"]
[SourceTitle "playchess.com"]
[Source "ChessBase"]
[SourceQuality "1"]
[TimeControl "40/6000:2400+30"]

{[%evp 16,90,22,24,10,22,5,0,22,21,47,0,15,0,18,0,47,0,0,-58,-74,-80,-71,-77,-87,-277,-275,-279,-209,-491,-525,-518,-493,-516,-508,-479,-350,-331,-332,-299,-286,-268,-278,-292,-287,-274,-239,-325,-343,-328,-222,-238,-238,-231,-191,-216,-215,-215,-210,-233,-218,-239,-165,-286,-194,-188,-170,-158,-117,-247,-249,-1847,-1823,-1823,-1618,-5389,-5389]} 1. e4 {[%emt 0:03:00]} c5 {[%emt 0:00:00]} 2. Nf3 {[%emt 0:00:15]} d6 {[%emt 0:00:00]} 3. d4 {[%emt 0:00:28]} cxd4 {[%emt 0:00:00]} 4. Nxd4 {[%emt 0:00:00]} Nf6 {[%emt 0:00:00]} 5. Nc3 {[%emt 0:00:00]} a6 {[%emt 0:00:00]} 6. Bg5 {[%emt 0:00:00]} e6 {[%emt 0:00:00]} 7. f4 {[%emt 0:00:00]} h6 {[%emt 0:00:00]} 8. Bh4 {[%emt 0:00:00]} Qb6 {[%emt 0:00:00]} 9. a3 {[%emt 0:00:00]} Nbd7 {[%emt 0:00:00]} (9... Qxb2 $2 10. Na4 $18) 10. Bf2 {[%emt 0:00:00][%cal Od4e6]} Qc7 {[%emt 0:00:00]} (10... Qxb2 $2 {loses.} 11. Na4 $18) 11. Qe2 {[%emt 0:00:00]} b5 {[%emt 0:00:00] The position is equal.} 12. O-O-O {[%emt 0:02:05]} Rb8 {[%emt 0:04:19]} 13. g3 {[%emt 0:23:42]} b4 {[%emt 0:06:42]} 14. axb4 {[%emt 0:06:13]} Rxb4 {[%emt 0:00:00]} 15. Bg2 {[%emt 0:02:31]} (15. Bh3 $5) 15... Bb7 {[%emt 0:01:35]} (15... Be7 $11) 16. Rhe1 {[%emt 0:01:32]} (16. Nd5 $14 exd5 17. exd5+ Be7 18. Nf5) 16... Be7 $11 {[%emt 0:04:02]} 17. g4 {[%emt 0:16:09]} (17. Nd5 $11 exd5 18. exd5) 17... Nc5 $15 {[%emt 0:11:58] White must now prevent ...Qa5.} 18. h4 {[%emt 0:05:03]} Qa5 {[%emt 0:06:23] Hoping for ...0-0.} 19. g5 {[%emt 0:02:31]} Nfd7 {[%emt 0:01:15]} 20. Nb1 $2 {[%emt 0:04:31]} (20. Kb1 $17) 20... hxg5 $19 {[%emt 0:11:08]} 21. hxg5 {[%emt 0:06:03]} Rh2 {[%emt 0:06:19]} 22. Bg1 $2 {[%emt 0:04:41] [#]} (22. c3 Rxd4 23. cxd4 Nb3+ (23... Rxg2 24. dxc5 Nxc5 25. Nc3 $15) 24. Kc2) 22... Qa2 $1 {[%emt 0:00:56]} 23. c3 {[%emt 0:03:32] [#]} Bxe4 $1 {[%emt 0:03:49][%mdl 512]} 24. Bxe4 {[%emt 0:00:00]} Rxe2 {[%emt 0:00:00]} 25. Rxe2 {[%emt 0:00:00]} Rxd4 {[%emt 0:10:39]} 26. cxd4 {[%emt 0:00:08]} Nxe4 {[%emt 0:00:51]} 27. Rxe4 {[%emt 0:00:00][%cal Od4d5]} d5 {[%emt 0:00:00]} 28. Re3 {[%emt 0:00:00]} Nb6 {[%emt 0:01:04]} 29. Nc3 {[%emt 0:00:04]} Qa5 {[%emt 0:00:37]} 30. b3 {[%emt 0:00:56]} Nc8 {[%emt 0:04:05]} 31. Kb2 {[%emt 0:00:34]} Qa3+ {[%emt 0:00:52]} 32. Kc2 {[%emt 0:00:00]} Nd6 {[%emt 0:00:00]} 33. Rb1 {[%emt 0:00:00]} Nf5 {[%emt 0:00:00][%csl LRd4,LRe3]} 34. Rd3 {[%emt 0:00:27]} Qd6 {[%emt 0:04:15]} 35. Rf1 {[%emt 0:00:00]} Qc7 {[%emt 0:02:02]} 36. Kb2 {[%emt 0:00:00]} Bd6 {[%emt 0:00:22]} 37. Ne2 {[%emt 0:00:00]} Qb8 {[%emt 0:01:55]} 38. Kc2 {[%emt 0:01:03]} Bb4 {[%emt 0:02:56]} 39. Ng3 {[%emt 0:01:06]} (39. Be3 $142) 39... Nxg3 {[%emt 0:00:45]} 40. Rxg3 {[%emt 0:01:18]} Qb5 {[%emt 0:00:56]} 41. Rd3 {[%emt 0:41:13]} Qa5 {[%emt 0:40:42] ...Qa2+ is the strong threat.} 42. Kd1 {[%emt 0:00:24]} (42. Kb1 $17) 42... Qa2 {[%emt 0:01:32]} 43. Bf2 $2 {[%emt 0:01:13]} (43. Be3) 43... Qb1+ {[%emt 0:00:41] Black is clearly winning.} 44. Ke2 {[%emt 0:00:04]} Qc2+ {[%emt 0:00:07]} 45. Ke3 {[%emt 0:00:04] [#]} Bd2+ $1 {[%emt 0:00:07][%mdl 512] Weighted Error Value: White=0.71/Black=0.24 (precise) .  Loses game:     	White=1     	---        Mistake:       	White=6     	Black=1      Inaccurate:     	White=2     	Black=4      OK:         	White=6     	Black=14     Best:        	White=3     	Black=2} 0-1

[Event "Fagernes GM Open Autumn 2024"]
[Site "Fagernes"]
[Date "2024.10.11"]
[Round "7.11"]
[White "Wallace, John Paul"]
[Black "Laddha, Shubh Jayesh"]
[Result "1/2-1/2"]
[ECO "A20"]
[WhiteElo "2373"]
[BlackElo "2308"]
[Annotator "RC"]
[PlyCount "89"]
[EventDate "2024.10.03"]
[EventType "swiss"]
[EventCountry "NOR"]
[SourceTitle "playchess.com"]
[Source "ChessBase"]
[SourceQuality "1"]
[TimeControl "40/6000:2400+30"]

1. c4 {[%emt 0:00:00]} e5 {[%emt 0:00:00]} 2. d3 {[%emt 0:00:00]} Nf6 {[%emt 0:00:20]} 3. Nf3 {[%emt 0:00:00]} Nc6 {[%emt 0:02:10]} 4. a3 {[%emt 0:00:00]} g6 {[%emt 0:04:10]} 5. b4 {[%emt 0:00:56]} d6 {[%emt 0:04:20]} 6. e4 {[%emt 0:09:16]} Bg7 {[%emt 0:01:14]} 7. g3 {[%emt 0:00:02]} O-O {[%emt 0:07:07]} 8. Bg2 {[%emt 0:00:13]} Be6 {[%emt 0:01:58]} 9. Nc3 {[%emt 0:00:05]} h6 {[%emt 0:05:45]} 10. Nd5 {[%emt 0:00:08]} Kh7 {[%emt 0:05:21]} 11. h4 {[%emt 0:09:38]} Nh5 {[%emt 0:09:02]} 12. Be3 {[%emt 0:25:53]} Ne7 {[%emt 0:08:48]} 13. d4 {[%emt 0:10:07]} Nc6 {[%emt 0:05:12]} 14. dxe5 {[%emt 0:03:44]} Nxe5 {[%emt 0:03:33]} 15. Nxe5 {[%emt 0:00:00]} dxe5 {[%emt 0:00:22]} 16. Bh3 {[%emt 0:03:05]} Bxh3 {[%emt 0:05:25]} 17. Rxh3 {[%emt 0:00:00]} c6 {[%emt 0:01:05]} 18. Nc3 {[%emt 0:00:00]} Qc8 {[%emt 0:00:00]} 19. Rh1 {[%emt 0:00:00]} Qe6 {[%emt 0:00:57]} 20. Qe2 {[%emt 0:01:12]} Rfd8 {[%emt 0:01:03]} 21. Kf1 {[%emt 0:00:21]} Rd4 {[%emt 0:02:08]} 22. c5 {[%emt 0:05:14]} Rad8 {[%emt 0:08:10]} 23. Kg2 {[%emt 0:02:40]} Rc4 {[%emt 0:01:06]} 24. Rac1 {[%emt 0:01:59]} Nf4+ {[%emt 0:06:28]} 25. gxf4 {[%emt 0:02:44]} exf4 {[%emt 0:00:00]} 26. Bd2 {[%emt 0:02:45]} f3+ {[%emt 0:00:43]} 27. Kxf3 {[%emt 0:00:00]} Bxc3 {[%emt 0:00:52]} 28. Rxc3 {[%emt 0:05:29]} Qf6+ {[%emt 0:01:09]} 29. Kg2 {[%emt 0:00:00]} Rxd2 {[%emt 0:01:12]} 30. Qxd2 {[%emt 0:00:36]} Rxc3 {[%emt 0:00:00]} 31. Rh3 {[%emt 0:06:35]} Rxh3 {[%emt 0:00:00]} 32. Kxh3 {[%emt 0:00:00]} Qf3+ {[%emt 0:00:00]} 33. Kh2 {[%emt 0:00:00]} Qxe4 {[%emt 0:00:00]} 34. Qd7 {[%emt 0:00:00]} Qxh4+ {[%emt 0:00:20]} 35. Kg1 {[%emt 0:00:00]} Qg5+ {[%emt 0:01:37]} 36. Kf1 {[%emt 0:00:00]} Qc1+ {[%emt 0:01:03]} 37. Kg2 {[%emt 0:00:00]} Qg5+ {[%emt 0:00:14]} 38. Kf1 {[%emt 0:00:00]} Kg7 {[%emt 0:01:18]} 39. Qxb7 {[%emt 0:00:00]} Qc1+ {[%emt 0:00:00]} 40. Kg2 {[%emt 0:00:00]} Qg5+ {[%emt 0:02:25]} 41. Kf1 {[%emt 0:39:38]} Qd5 {[%emt 0:11:35]} 42. b5 {[%emt 0:00:00]} Qd1+ {[%emt 0:01:44]} 43. Kg2 {[%emt 0:00:00]} Qg4+ {[%emt 0:00:05]} 44. Kf1 {[%emt 0:00:00]} Qd1+ {[%emt 0:00:07]} 45. Kg2 1/2-1/2

[Event "Fagernes GM Open Autumn 2024"]
[Site "Fagernes"]
[Date "2024.10.11"]
[Round "7.12"]
[White "Carlsson, Ludvig"]
[Black "Namitbir Singh Walia"]
[Result "1-0"]
[ECO "A30"]
[WhiteElo "2334"]
[BlackElo "2351"]
[Annotator "RC"]
[PlyCount "187"]
[EventDate "2024.10.03"]
[EventType "swiss"]
[EventCountry "NOR"]
[SourceTitle "playchess.com"]
[Source "ChessBase"]
[SourceQuality "1"]
[TimeControl "40/6000:2400+30"]

1. Nf3 {[%emt 0:02:01]} Nf6 {[%emt 0:00:00]} 2. c4 {[%emt 0:00:00]} c5 {[%emt 0:00:00]} 3. g3 {[%emt 0:00:47]} Nc6 {[%emt 0:00:00]} 4. Bg2 {[%emt 0:00:06]} d5 {[%emt 0:00:00]} 5. cxd5 {[%emt 0:00:00]} Nxd5 {[%emt 0:00:00]} 6. d4 {[%emt 0:00:00]} cxd4 {[%emt 0:00:00]} 7. Nxd4 {[%emt 0:00:00]} Ndb4 {[%emt 0:00:00]} 8. Nxc6 {[%emt 0:01:58]} Qxd1+ {[%emt 0:00:00]} 9. Kxd1 {[%emt 0:00:00]} Nxc6 {[%emt 0:00:00]} 10. Be3 {[%emt 0:03:59]} g6 {[%emt 0:09:59]} 11. Bxc6+ {[%emt 0:10:20]} bxc6 {[%emt 0:00:00]} 12. Kd2 {[%emt 0:00:00]} Bg7 {[%emt 0:08:52]} 13. Nc3 {[%emt 0:00:00]} Rb8 {[%emt 0:23:35]} 14. b3 {[%emt 0:00:00]} Bf5 {[%emt 0:07:19]} 15. Rac1 {[%emt 0:01:02]} h5 {[%emt 0:11:24]} 16. f3 {[%emt 0:02:46]} h4 {[%emt 0:06:48]} 17. g4 {[%emt 0:00:26]} Rd8+ {[%emt 0:00:54]} 18. Ke1 {[%emt 0:00:00]} Bxc3+ {[%emt 0:07:07]} 19. Rxc3 {[%emt 0:00:00]} Bd7 {[%emt 0:00:00]} 20. Rc5 {[%emt 0:00:00]} f5 {[%emt 0:02:57]} 21. h3 {[%emt 0:00:03]} a6 {[%emt 0:02:02]} 22. Bg5 {[%emt 0:03:50]} Rb8 {[%emt 0:04:21]} 23. Ra5 {[%emt 0:00:19]} Bc8 {[%emt 0:02:12]} 24. Kf2 {[%emt 0:00:33]} Rb5 {[%emt 0:01:47]} 25. Rxb5 {[%emt 0:02:14]} axb5 {[%emt 0:02:10]} 26. Rc1 {[%emt 0:00:04]} Bd7 {[%emt 0:01:13]} 27. a4 {[%emt 0:00:00]} bxa4 {[%emt 0:00:30]} 28. bxa4 {[%emt 0:00:00]} Kf7 {[%emt 0:02:05]} 29. a5 {[%emt 0:02:08]} Ra8 {[%emt 0:00:35]} 30. Rc5 {[%emt 0:00:00]} fxg4 {[%emt 0:00:20]} 31. hxg4 {[%emt 0:00:34]} h3 {[%emt 0:00:26]} 32. Bf4 {[%emt 0:00:45]} Ra7 {[%emt 0:01:33]} 33. Be3 {[%emt 0:01:02]} Be6 {[%emt 0:01:00]} 34. Kg3 {[%emt 0:00:00]} Ra6 {[%emt 0:00:00]} 35. Kxh3 {[%emt 0:00:00]} Bd5 {[%emt 0:00:00]} 36. Bf4 {[%emt 0:00:00]} Bb3 {[%emt 0:00:00]} 37. Kg3 {[%emt 0:14:08]} Ba4 {[%emt 0:00:00]} 38. Bd2 {[%emt 0:00:00]} Bb5 {[%emt 0:00:00]} 39. e4 {[%emt 0:00:00]} Ra7 {[%emt 0:00:00]} 40. Rc2 {[%emt 0:02:34]} Rd7 {[%emt 0:00:03]} 41. Ra2 {[%emt 0:44:20]} Bc4 {[%emt 0:13:00]} 42. Rc2 {[%emt 0:00:00]} Bb5 {[%emt 0:00:22]} 43. Ra2 {[%emt 0:00:00]} Bc4 {[%emt 0:00:16]} 44. Rb2 {[%emt 0:00:00]} Bb5 {[%emt 0:00:13]} 45. Kh4 {[%emt 0:00:00]} Rd3 {[%emt 0:13:23]} 46. Kg3 {[%emt 0:00:00]} Ra3 {[%emt 0:01:46]} 47. Kf2 {[%emt 0:00:00]} e5 {[%emt 0:03:09]} 48. Rc2 {[%emt 0:00:00]} Ke6 {[%emt 0:02:55]} 49. Bc3 {[%emt 0:00:00]} Bd3 {[%emt 0:04:32]} 50. Rc1 {[%emt 0:00:00]} Bb5 {[%emt 0:01:13]} 51. Be1 {[%emt 0:00:00]} Ra2+ {[%emt 0:00:37]} 52. Kg3 {[%emt 0:00:00]} Ra3 {[%emt 0:02:38]} 53. Bb4 {[%emt 0:00:00]} Ra4 {[%emt 0:00:40]} 54. Rb1 {[%emt 0:00:00]} Be2 {[%emt 0:01:36]} 55. Rb2 {[%emt 0:00:00]} Bb5 {[%emt 0:00:26]} 56. Kh4 {[%emt 0:00:00]} Kf6 {[%emt 0:00:19]} 57. Bc3 {[%emt 0:02:10]} g5+ {[%emt 0:01:51]} 58. Kg3 {[%emt 0:00:06]} Ra3 {[%emt 0:00:24]} 59. Rc2 {[%emt 0:02:53]} Ke6 {[%emt 0:00:33]} 60. Bd2 {[%emt 0:00:42]} Bd3 {[%emt 0:00:49]} 61. Rxc6+ {[%emt 0:01:36]} Kd7 {[%emt 0:00:03]} 62. Bb4 {[%emt 0:11:00]} Rb3 {[%emt 0:00:48]} 63. Rd6+ {[%emt 0:00:06]} Kc7 {[%emt 0:00:04]} 64. Rb6 {[%emt 0:00:06]} Kd7 {[%emt 0:00:27]} 65. Be7 {[%emt 0:02:22]} Rc3 {[%emt 0:00:49]} 66. Bb4 {[%emt 0:00:05]} Rb3 {[%emt 0:00:11]} 67. Bd2 {[%emt 0:08:25]} Ra3 {[%emt 0:00:03]} 68. Kf2 {[%emt 0:01:21]} Ra2 {[%emt 0:00:13]} 69. Ke3 {[%emt 0:00:01]} Bc4 {[%emt 0:00:01]} 70. Rb4 {[%emt 0:01:16]} Ba6 {[%emt 0:00:37]} 71. Rb1 {[%emt 0:00:26]} Ra3+ {[%emt 0:00:18]} 72. Kf2 {[%emt 0:00:02]} Ra2 {[%emt 0:00:05]} 73. Rd1 {[%emt 0:01:18]} Ke6 {[%emt 0:01:08]} 74. Ke1 {[%emt 0:00:03]} Ra3 {[%emt 0:01:43]} 75. Rc1 {[%emt 0:03:32]} Kd7 {[%emt 0:00:58]} 76. Bc3 {[%emt 0:00:14]} Ra2 {[%emt 0:00:25]} 77. Bxe5 {[%emt 0:00:29]} Rxa5 {[%emt 0:00:12]} 78. Rc7+ {[%emt 0:00:22]} Ke6 {[%emt 0:00:56]} 79. Bb2 {[%emt 0:00:15]} Ra2 {[%emt 0:00:22]} 80. Rc6+ {[%emt 0:00:09]} Kd7 {[%emt 0:00:03]} 81. Rb6 {[%emt 0:00:13]} Kc7 {[%emt 0:00:42]} 82. Rb3 {[%emt 0:00:16]} Bc4 {[%emt 0:00:53]} 83. Rb4 {[%emt 0:00:13]} Kd6 {[%emt 0:00:27]} 84. Rxc4 {[%emt 0:05:28]} Rxb2 {[%emt 0:00:02]} 85. Rc8 {[%emt 0:00:10]} Ke5 {[%emt 0:00:20]} 86. Rf8 {[%emt 0:00:06]} Kd4 {[%emt 0:00:08]} 87. Rf5 {[%emt 0:00:12]} Ke3 {[%emt 0:00:41]} 88. Kf1 {[%emt 0:00:01]} Rf2+ {[%emt 0:00:55]} 89. Kg1 {[%emt 0:00:05]} Ra2 {[%emt 0:00:49]} 90. e5 {[%emt 0:00:13]} Ra7 {[%emt 0:00:05]} 91. Kg2 {[%emt 0:00:08]} Rg7 {[%emt 0:00:16]} 92. Kg3 {[%emt 0:00:23]} Rg6 {[%emt 0:00:11]} 93. e6 {[%emt 0:00:26]} Rxe6 {[%emt 0:00:16]} 94. Rxg5 {[%emt 0:00:04]} 1-0

[Event "Fagernes GM Open Autumn 2024"]
[Site "Fagernes"]
[Date "2024.10.11"]
[Round "7.13"]
[White "Sasikiran, Krishnan"]
[Black "Gudbrandsen, Gustav"]
[Result "1-0"]
[ECO "A48"]
[WhiteElo "2571"]
[BlackElo "2197"]
[Annotator "TA"]
[PlyCount "85"]
[EventDate "2024.10.03"]
[EventType "swiss"]
[EventCountry "NOR"]
[SourceTitle "playchess.com"]
[Source "ChessBase"]
[SourceQuality "1"]
[TimeControl "40/6000:2400+30"]

{[%evp 15,85,10,24,27,25,23,24,21,41,-8,-7,-22,8,17,23,21,21,28,39,41,29,35,54,61,53,54,50,60,49,50,61,54,64,28,22,17,12,20,56,62,106,26,16,18,58,37,124,130,164,81,58,72,119,127,127,127,114,109,163,116,269,261,468,457,2323,2070,2122,2057,5193,4822,4132,1447]} 1. d4 {[%emt 0:00:00]} Nf6 {[%emt 0:00:00]} 2. Nf3 {[%emt 0:00:00]} g6 {[%emt 0:00:39]} 3. Bg5 {[%emt 0:00:00]} Bg7 {[%emt 0:00:57]} 4. Nbd2 {[%emt 0:00:00]} O-O {[%emt 0:02:13]} 5. e3 {[%emt 0:00:00]} d6 {[%emt 0:01:07]} 6. c3 {[%emt 0:00:00]} Nbd7 {[%emt 0:03:03]} 7. Bd3 {[%emt 0:00:32]} e5 {[%emt 0:02:35]} 8. O-O {[%emt 0:00:32]} Qe8 {[%emt 0:02:05] ...e4 is the strong threat.} 9. e4 {[%emt 0:01:00]} h6 {[%emt 0:01:03]} 10. Bh4 {[%emt 0:00:10]} Nh5 {[%emt 0:01:32]} 11. Re1 {[%emt 0:03:11] White has an edge.} Nb6 {[%emt 0:04:44]} 12. dxe5 {[%emt 0:13:55]} (12. a4 $14) 12... dxe5 $11 {[%emt 0:00:08]} 13. Qc2 {[%emt 0:00:43]} g5 {[%emt 0:10:26][%cal Og5g4] Threatens to win with ...g4!} 14. Bg3 {[%emt 0:00:30]} Nxg3 {[%emt 0:01:12]} 15. hxg3 {[%emt 0:06:46]} Be6 {[%emt 0:03:22]} 16. Nf1 {[%emt 0:03:31]} Qa4 {[%emt 0:01:45]} 17. b3 {[%emt 0:01:10]} Qc6 {[%emt 0:00:00]} 18. Ne3 {[%emt 0:06:57]} Rad8 {[%emt 0:06:10]} 19. Rad1 {[%emt 0:06:44]} Rfe8 {[%emt 0:05:11]} 20. a4 {[%emt 0:05:36]} a6 {[%emt 0:01:15] Prevents Bb5.} 21. a5 {[%emt 0:04:35]} Nd7 {[%emt 0:01:32]} 22. Bc4 {[%emt 0:03:02]} Bxc4 {[%emt 0:08:36]} 23. Nxc4 {[%emt 0:00:12]} Nc5 {[%emt 0:01:51] [#]} 24. Ncxe5 $1 {[%emt 0:11:21]} Bxe5 {[%emt 0:01:29]} 25. Rxd8 {[%emt 0:00:13]} Rxd8 {[%emt 0:00:00]} 26. Nxe5 {[%emt 0:00:00]} Qd6 {[%emt 0:01:35]} 27. Ng4 {[%emt 0:04:23]} Qe6 {[%emt 0:00:38][%csl LRb3,LRg4]} 28. b4 {[%emt 0:01:41]} ({White should try} 28. Qe2 $1 $16) 28... Qxg4 {[%emt 0:10:46]} 29. bxc5 {[%emt 0:00:00][%mdl 4096] Endgame. KQR-KQR} Qe6 {[%emt 0:01:10]} 30. Qb1 {[%emt 0:07:44]} Qc4 {[%emt 0:02:01]} (30... Qe5 $14) 31. e5 $1 $16 {[%emt 0:01:17] Hoping for e6.} (31. Qxb7 Qxc5 (31... Qxc3 32. Rb1 $16) 32. Qxa6 Qxc3 $14) 31... Re8 {[%emt 0:02:28] [#]} 32. Qb4 {[%emt 0:01:47]} (32. Qxb7 $6 Qxc3 33. Re4 Qxa5 $14) (32. e6 $1 $18 {[%cal Re6f7] is the precise move to win.} Kg7 33. exf7 (33. Qxb7 Qxc3 34. Re3 Qxc5 $16) 33... Rxe1+ 34. Qxe1) 32... Qxb4 {[%emt 0:06:34]} 33. cxb4 {[%emt 0:00:00] KR-KR} f6 {[%emt 0:00:06]} (33... Kf8 $142) 34. Rd1 {[%emt 0:01:56] Black must now prevent Rd7.} Rxe5 {[%emt 0:00:42] [#]} 35. Rd8+ $1 {[%emt 0:03:30]} Kf7 {[%emt 0:00:02]} 36. Rb8 {[%emt 0:00:03]} Re1+ {[%emt 0:03:00]} 37. Kh2 {[%emt 0:00:00]} Rb1 $2 {[%emt 0:00:02] Loses the game.} (37... Ke7 $16 38. Rxb7 Kd7) 38. Rxb7 $18 {[%emt 0:00:13]} Kg6 $2 {[%emt 0:00:09]} (38... Ke8 39. Rxc7 Rxb4) 39. g4 {[%emt 0:00:29] White is clearly winning.} (39. Rxc7 Rxb4 40. c6 Rc4 $14) 39... h5 {[%emt 0:00:45]} (39... c6 $142 40. Rb6 Kf7) 40. gxh5+ {[%emt 0:00:32]} (40. Rxc7 Rxb4 41. gxh5+ Kxh5 $16) 40... Kxh5 {[%emt 0:00:00]} 41. c6 {[%emt 0:43:49]} (41. Rxc7 Rxb4 42. Rc6 Rb5 43. Rxf6 Rxa5 $14) 41... Kg4 {[%emt 0:43:08]} 42. b5 {[%emt 0:02:16]} ({Not} 42. Rxc7 Rxb4 43. Ra7 Kf5 $18) 42... axb5 {[%emt 0:00:15]} 43. a6 {[%emt 0:00:09] Weighted Error Value: White=0.11 (very precise) /Black=0.29 (precise) .  Mistake:       	White=3     	Black=5      Inaccurate:     	White=1     	Black=4      OK:         	White=11    	Black=8      Best:        	White=4     	Black=3      Strong:       	White=2     	---} (43. Rxc7 $142 Kf5 44. Re7) 1-0